bitfinex/quotes_ETHUSD_20220213
["timestamp","ask_amount","ask_price","bid_price","bid_amount"]
[1644786049895,0.17369911,2904.2,2903.8,0.88510699]
[1644786050096,0.00629126,2903.9,2903.8,0.86117]
[1644786050299,0.00159911,2904.2,2903.9,0.25]
[1644786051297,0.1721,2904.1,2903.9,0.25]
[1644786051897,0.00159911,2904.2,2903.9,0.25]
[1644786052096,0.02753351,2904.3,2903.9,0.25]
[1644786052097,0.00159486,2904.1,2903.9,0.25]
[1644786053745,0.00787763,2904.1,2903.9,0.25]
[1644786054349,0.00787763,2904.1,2903.7,0.00117779]
[1644786054548,0.1721,2904.0,2903.7,0.00117779]
[1644786054950,1.0,2903.9,2903.7,0.00117779]
[1644786055147,0.001,2903.8,2903.7,0.00117779]
[1644786056495,3.33935341,2903.8,2903.7,0.00117779]
[1644786056895,0.001,2903.8,2903.7,0.00117779]
[1644786057397,0.86249,2903.8,2903.1,1.51939]
[1644786057598,0.86249,2903.8,2903.2,0.3]
[1644786059295,0.86157,2903.7,2903.2,0.3]
[1644786059498,1.16257,2903.7,2903.2,0.3]
[1644786059712,0.3,2903.4,2903.2,0.3]
[1644786060842,0.3,2903.4,2903.2,0.25]
[1644786062245,0.00169038,2903.7,2903.3,0.00117793]
[1644786062947,0.86319038,2903.7,2903.3,0.00117793]
[1644786063244,0.3,2903.6,2903.3,0.00117793]
[1644786063906,0.3,2903.6,2903.4,0.1]
[1644786067004,0.3,2903.6,2903.4,0.6]
[1644786067206,0.00169038,2903.7,2903.4,0.9]
[1644786067403,0.00168188,2903.5,2903.4,0.9]
[1644786070948,0.01069447,2904.0,2903.4,1.0721]
[1644786071149,0.01069447,2904.0,2903.5,0.86129]
[1644786071401,0.01069447,2904.0,2903.8,0.97637358]
[1644786071590,0.02753351,2904.3,2903.7,1.72254]
[1644786071792,0.01069505,2904.0,2903.8,0.3]
[1644786072390,0.01069505,2904.0,2903.8,0.5]
[1644786072791,0.3,2904.2,2903.9,0.3]
[1644786072992,0.01069535,2904.0,2903.9,0.3]
[1644786073197,0.01069535,2904.0,2903.8,1.66127]
[1644786073994,1.16137,2904.2,2903.8,1.66127]
[1644786073995,2.02274,2904.2,2903.8,1.66127]
[1644786074194,0.01069532,2904.0,2903.8,1.66127]
[1644786074395,0.87209532,2904.0,2903.8,1.66127]
[1644786074593,1.17209532,2904.0,2903.8,1.66127]
[1644786075246,1.1614,2904.0,2903.8,1.66127]
[1644786075447,1.17209532,2904.0,2903.8,1.66127]
[1644786075648,0.31069532,2904.0,2903.8,1.66127]
[1644786076250,0.3,2904.0,2903.8,1.66127]
[1644786076651,0.31069532,2904.0,2903.8,1.66127]
[1644786076851,1.17208532,2904.0,2903.8,1.66127]
[1644786077052,0.00160605,2903.9,2903.8,1.66127]
[1644786077252,0.00160605,2903.9,2903.8,0.8]
[1644786080097,0.0106952,2904.0,2903.8,0.8]
[1644786080295,0.0106952,2904.0,2903.9,0.86131]
[1644786080693,0.0106952,2904.0,2903.9,1.16131]
[1644786081098,0.20160605,2904.1,2903.9,1.16131]
[1644786081295,0.20160605,2904.1,2904.0,0.3]
[1644786081496,0.21230126,2904.1,2904.0,0.3]
[1644786081694,0.21230126,2904.1,2904.0,3.8]
[1644786082295,0.20160605,2904.1,2904.0,3.8]
[1644786086157,0.20160605,2904.1,2904.0,4.3]
[1644786086404,1.90539503,2904.2,2904.0,3.8]
[1644786086601,0.01069503,2904.2,2904.0,3.8]
[1644786086801,0.02753351,2904.3,2904.0,3.8]
[1644786086802,0.02753351,2904.3,2904.1,4.65]
[1644786087901,0.001,2905.0,2904.9,0.88027992]
[1644786088300,0.001,2905.0,2904.9,1.18027992]
[1644786089701,0.87222753,2905.1,2904.9,1.18027992]
[1644786090156,0.87222753,2905.1,2904.8,0.3]
[1644786090349,0.87222753,2905.1,2905.0,0.1]
[1644786090350,1.73332753,2905.1,2905.0,0.1]
[1644786090751,1.7236,2905.1,2905.0,0.1]
[1644786090952,2.0236,2905.1,2905.0,0.1]
[1644786092453,2.0236,2905.1,2905.0,3.6]
[1644786092657,2.0236,2905.1,2905.0,3.9]
[1644786093258,4.61187798,2905.1,2905.0,1.84838203]
[1644786093459,5.61187798,2905.1,2905.0,1.24838203]
[1644786094101,4.65,2905.0,2904.9,0.00117973]
[1644786094300,10.24385546,2905.0,2904.9,0.00117973]
[1644786094500,5.59385546,2905.0,2904.9,0.00117973]
[1644786094702,10.59385546,2905.0,2904.9,0.00117973]
[1644786095001,1.72267,2904.8,2904.3,0.1721]
[1644786095303,3.69558575,2904.7,2904.2,0.3]
[1644786095602,0.001,2904.6,2904.2,0.3]
[1644786095801,1.001,2904.6,2904.2,0.3]
[1644786096001,0.86242,2904.5,2904.2,0.3]
[1644786096405,1.86242,2904.5,2904.2,0.3]
[1644786096600,0.86242,2904.5,2904.2,0.3]
[1644786096802,1.86242,2904.5,2904.2,0.3]
[1644786097000,0.87313618,2904.5,2904.2,0.3]
[1644786097206,1.87313618,2904.5,2904.2,0.3]
[1644786097401,0.86136,2904.4,2904.2,0.3]
[1644786097649,2.16136,2904.4,2904.2,0.3]
[1644786097851,0.1721,2904.3,2904.2,0.3]
[1644786098048,3.7342047,2904.3,2903.7,1.72269]
[1644786098249,0.86144,2904.2,2903.8,0.01071876]
[1644786098449,3.71235244,2904.1,2903.8,0.01071876]
[1644786098650,0.86147,2904.0,2903.8,0.01071876]
[1644786099076,1.86147,2904.0,2903.8,0.01071876]
[1644786099251,1.86147,2904.0,2903.8,0.5]
[1644786099453,1.86147,2904.0,2903.9,0.3]
[1644786099651,1.16147,2904.1,2903.9,0.3]
[1644786099851,0.3,2904.1,2903.9,0.3]
[1644786100051,0.01072081,2904.3,2904.0,0.5]
[1644786100249,0.01072081,2904.3,2904.0,0.8]
[1644786100452,0.001,2904.5,2904.0,0.8]
[1644786100650,0.0107213,2904.3,2904.0,0.8]
[1644786100850,0.8719513,2904.3,2904.0,0.8]
[1644786101497,0.86123,2904.3,2904.0,0.8]
[1644786101898,0.8719513,2904.3,2904.0,0.8]
[1644786102196,0.3,2904.2,2904.0,0.8]
[1644786103396,2.02283,2904.2,2904.0,0.8]
[1644786103599,1.97283,2904.2,2904.0,0.8]
[1644786103896,2.97283,2904.2,2904.0,0.8]
[1644786104301,2.97283,2904.2,2904.0,4.3]
[1644786104697,2.97283,2904.2,2904.0,4.0]
[1644786104898,3.446513,2904.1,2904.0,4.0]
[1644786105448,4.446513,2904.1,2904.0,3.5]
[1644786105648,4.446513,2904.1,2904.0,3.15000001]
[1644786106048,4.1,2904.0,2903.9,0.00147152]
[1644786106252,5.15462044,2904.0,2903.9,0.00147152]
[1644786106450,4.74062044,2904.0,2903.9,0.00147152]
[1644786106853,5.15462044,2904.0,2903.9,0.00147152]
[1644786107548,11.31621044,2904.0,2903.8,20.31221277]
[1644786107747,3.30347896,2903.9,2903.8,20.30149001]
[1644786107947,3.30347896,2903.9,2903.8,20.31161023]
[1644786108148,4.30347896,2903.9,2903.8,20.31161023]
[1644786108896,4.30347896,2903.9,2903.8,20.25149001]
[1644786109095,1.0,2903.9,2903.8,20.25149001]
[1644786109497,4.28972868,2903.9,2903.8,20.25149001]
[1644786109695,4.40368307,2903.9,2903.8,20.25149001]
[1644786110994,1.0,2903.9,2903.8,20.25149001]
[1644786112000,4.22035201,2903.9,2903.8,20.25149001]
[1644786112198,3.22035201,2903.9,2903.8,20.25149001]
[1644786112397,4.22035201,2903.9,2903.8,20.25149001]
[1644786112846,1.0016701,2903.9,2903.8,20.25149001]
[1644786113044,4.26150695,2903.9,2903.8,20.25149001]
[1644786113244,3.26150695,2903.9,2903.8,20.25149001]
[1644786113445,4.26150695,2903.9,2903.8,20.25149001]
[1644786114848,4.26150695,2903.9,2903.8,23.75149001]
[1644786115648,4.26150695,2903.9,2903.8,21.37634101]
[1644786117201,4.26150695,2903.9,2903.8,16.85595547]
[1644786118901,4.75750695,2903.9,2903.8,16.81593852]
[1644786119098,4.75750695,2903.9,2903.8,16.17328313]
[1644786120000,3.21177,2903.8,2902.7,0.1721]
[1644786120254,3.21177,2903.8,2902.2,0.5]
[1644786120255,4.95,2902.8,2902.2,0.5]
[1644786120457,4.95,2902.8,2902.0,0.8604]
[1644786120458,0.496,2902.7,2902.1,4.65]
[1644786120666,0.01235975,2903.5,2902.1,4.65]
[1644786120667,0.14033681,2903.0,2902.6,4.56472922]
[1644786120957,0.0016701,2903.9,2902.9,4.81472922]
[1644786121149,1.72377,2903.5,2903.0,3.996]
[1644786121350,9e-05,2903.6,2903.4,4.56472922]
[1644786121558,0.001,2904.5,2903.4,4.56472922]
[1644786121559,2.91736556,2905.3,2903.5,14.1676]
[1644786121753,3.71903346,2905.8,2905.2,4.56472922]
[1644786121754,4.99850974,2905.4,2905.2,4.56472922]
[1644786122055,0.05,2905.8,2905.3,6.1771808]
[1644786122252,0.05,2905.8,2905.7,4.56472922]
[1644786122461,3.68786556,2906.5,2905.8,4.7]
[1644786122659,3.68786556,2906.5,2906.4,4.56472922]
[1644786122660,0.7705,2906.5,2906.4,4.56472922]
[1644786122853,0.8612,2907.0,2906.5,0.03453066]
[1644786123051,0.0171598,2907.2,2906.9,4.56472922]
[1644786123250,0.0171598,2907.2,2907.1,4.56472922]
[1644786123450,0.0171598,2907.2,2907.1,5.06072922]
[1644786123654,2.06721679,2907.4,2907.1,5.49892919]
[1644786123915,0.0240381,2907.5,2907.1,5.49892919]
[1644786123916,0.0240381,2907.5,2907.3,4.56472922]
[1644786124105,4.70213346,2908.7,2907.5,4.7]
[1644786124305,4.53023346,2908.7,2908.2,4.56472922]
[1644786124508,4.39334683,2909.3,2908.4,4.7]
[1644786124509,2.75628611,2909.3,2908.4,4.7]
[1644786124809,0.0169861,2909.8,2909.2,4.56472922]
[1644786125112,4.54785983,2911.1,2909.8,0.85944]
[1644786125306,0.13315767,2911.3,2909.8,0.25]
[1644786125506,0.75741935,2910.8,2909.8,0.25]
[1644786125906,0.1718,2910.7,2909.8,0.25]
[1644786126108,0.1718,2910.7,2909.2,3.8]
[1644786126109,0.496,2910.6,2909.2,3.8]
[1644786126308,0.70741935,2909.9,2909.2,3.8]
[1644786126508,0.70741935,2909.9,2908.8,0.25]
[1644786126509,3.6718,2910.5,2908.8,0.25]
[1644786126706,0.6678,2909.8,2908.8,0.25]
[1644786127407,2.0656818,2909.6,2908.6,0.2816]
[1644786127665,0.1728,2909.5,2908.6,4.57418065]
[1644786127960,0.1728,2909.5,2908.6,0.2816]
[1644786128160,0.1218,2909.5,2908.6,0.2816]
[1644786128359,3.6718,2909.8,2908.6,0.2816]
[1644786128559,0.001,2909.7,2908.6,0.2816]
[1644786128763,0.1718,2909.6,2908.6,0.2816]
[1644786129162,1.89235,2909.6,2907.8,0.8612]
[1644786129362,1.89235,2909.6,2907.6,0.6718]
[1644786129363,0.86044,2908.9,2907.6,0.6718]
[1644786129561,0.1719,2908.8,2907.6,0.5]
[1644786129763,0.001,2908.8,2908.6,4.29258065]
[1644786129965,0.3,2908.9,2907.7,3.5]
[1644786130175,0.1719,2909.1,2908.3,4.29258065]
[1644786130764,0.496,2909.7,2908.5,1.44810352]
[1644786130765,0.01134629,2908.8,2908.5,1.44810352]
[1644786131702,0.1719,2909.2,2908.5,1.15300352]
[1644786131903,0.01134638,2908.8,2908.6,4.29258065]
[1644786132103,0.01134638,2908.8,2908.5,1.15300352]
[1644786132708,0.01134638,2908.8,2908.3,4.29258065]
[1644786132903,0.1718,2909.1,2908.3,3.70228065]
[1644786133106,0.1718,2909.4,2908.3,4.00228065]
[1644786133304,0.01134638,2908.8,2908.3,4.00228065]
[1644786133705,0.01134638,2908.8,2908.3,1.37857634]
[1644786133908,0.01134638,2908.8,2908.4,3.70228065]
[1644786134105,0.1719,2909.3,2908.4,3.40718065]
[1644786134304,0.1719,2909.3,2908.3,1.37857634]
[1644786134504,0.413,2909.4,2908.3,1.37857634]
[1644786134505,0.01134655,2908.7,2908.3,1.37857634]
[1644786135150,0.01134655,2908.7,2908.3,4.78575699]
[1644786135355,0.413,2909.4,2908.3,4.78575699]
[1644786135552,0.01134664,2908.6,2908.3,1.07857634]
[1644786136154,0.01134664,2908.6,2908.3,4.48575699]
[1644786136554,0.1719,2909.3,2908.3,1.07857634]
[1644786136753,0.01134672,2908.6,2908.3,1.07857634]
[1644786137153,0.01134672,2908.6,2908.3,1.37857634]
[1644786137356,0.01134672,2908.6,2908.2,6.8771]
[1644786137758,0.00118278,2908.7,2908.3,3.5]
[1644786137959,0.01134681,2908.5,2908.3,3.5]
[1644786138359,0.01134681,2908.5,2908.2,6.8771]
[1644786138360,4.55,2908.3,2908.2,0.38328503]
[1644786138555,0.02750609,2907.4,2906.5,4.44426006]
[1644786138757,0.02750609,2907.4,2906.8,3.90718065]
[1644786139007,0.02750609,2907.4,2907.0,3.40718065]
[1644786139308,0.01134908,2907.2,2906.8,0.5]
[1644786139506,0.02750609,2907.4,2906.8,0.5]
[1644786139507,0.02750609,2907.4,2907.2,0.02269815]
[1644786140110,0.02750609,2907.4,2907.3,3.40718065]
[1644786140308,0.02750609,2907.4,2907.3,7.30927822]
[1644786140513,0.02750609,2907.4,2907.3,7.60927822]
[1644786140709,0.02750609,2907.4,2907.3,3.87908065]
[1644786141413,0.02750609,2907.4,2907.2,0.02269815]
[1644786141813,0.413,2907.3,2907.2,0.02269815]
[1644786142012,0.5849,2907.3,2907.2,0.02269815]
[1644786142210,0.58684368,2907.3,2907.2,0.02269815]
[1644786142411,0.41494368,2907.3,2907.2,0.02269815]
[1644786143056,0.00194368,2907.3,2907.2,0.02269815]
[1644786144052,0.41494368,2907.3,2907.2,0.02269815]
[1644786144252,0.41594368,2907.3,2907.2,0.02269815]
[1644786144952,0.41494368,2907.3,2907.2,0.02269815]
[1644786145560,1.41594368,2907.3,2907.2,9.815e-05]
[1644786145756,1.41594368,2907.3,2905.5,4.05883199]
[1644786145757,1.72184,2906.9,2905.4,1.354]
[1644786145957,1.59281935,2906.6,2905.3,0.01135689]
[1644786146155,0.414,2906.5,2905.3,0.01135689]
[1644786146410,0.1223,2906.8,2904.3,0.01218693]
[1644786146411,0.5353,2906.4,2905.6,3.40718065]
[1644786146705,0.413,2906.4,2905.3,0.01135451]
[1644786146905,0.98338,2906.3,2905.3,0.01135451]
[1644786147105,0.413,2906.2,2905.3,0.01135451]
[1644786147304,0.414,2906.2,2905.1,0.5]
[1644786147605,0.414,2906.2,2905.3,0.94873145]
[1644786147606,0.1223,2906.1,2905.3,0.94873145]
[1644786147804,0.413,2906.0,2905.3,0.94873145]
[1644786148304,0.413,2906.0,2905.8,1.16119818]
[1644786148508,0.001,2906.5,2905.9,3.40718065]
[1644786148808,2.06745414,2907.1,2906.4,4.6047232]
[1644786148809,0.001,2907.0,2906.4,4.6047232]
[1644786149104,0.00307916,2907.3,2906.4,1.19754255]
[1644786149105,0.18632473,2907.3,2906.4,1.19754255]
[1644786149305,0.01442473,2907.3,2906.4,4.6047232]
[1644786149605,0.86073,2907.1,2906.4,1.19754255]
[1644786149804,0.1719,2907.0,2906.9,0.88030269]
[1644786150010,0.01542731,2907.3,2906.9,1.18030269]
[1644786150256,0.01442731,2907.3,2907.0,3.40718065]
[1644786150856,0.01442731,2907.3,2906.9,0.3]
[1644786151056,0.00307916,2907.3,2906.0,7.52875077]
[1644786151256,0.1719,2907.2,2906.2,0.3]
[1644786151454,0.1719,2907.2,2906.0,3.40718065]
[1644786151455,0.413,2907.1,2906.1,3.48892405]
[1644786151655,0.1719,2907.0,2906.0,3.70718065]
[1644786151858,0.86079,2906.9,2906.3,0.93851083]
[1644786152055,0.86079,2906.9,2905.9,3.40718065]
[1644786152056,0.1719,2906.8,2905.9,3.40718065]
[1644786152255,0.00110113,2906.4,2905.9,3.70718065]
[1644786152454,0.00110113,2906.4,2905.7,3.40718065]
[1644786152655,0.00110113,2906.4,2905.5,3.39744389]
[1644786152856,0.00110113,2906.4,2905.6,3.40718065]
[1644786153056,0.00110113,2906.4,2905.4,0.3]
[1644786153057,0.00110113,2906.4,2905.9,1.056705]
[1644786153262,0.86198113,2906.4,2905.9,1.356705]
[1644786153655,1.16198113,2906.4,2905.9,1.356705]
[1644786153905,0.001,2906.3,2905.9,1.356705]
[1644786154100,0.413,2906.2,2905.7,0.3]
[1644786154299,0.413,2906.2,2905.2,3.70718065]
[1644786154500,0.86097,2906.1,2905.2,3.70718065]
[1644786154703,1.16197,2906.1,2904.8,3.91202754]
[1644786154901,0.001,2906.0,2904.8,3.59167655]
[1644786155104,0.86106,2905.8,2904.7,0.96662865]
[1644786155301,0.5849,2905.7,2904.7,0.96662865]
[1644786155504,0.5859,2905.7,2904.7,0.96662865]
[1644786156101,3.16996,2905.7,2905.3,0.01135831]
[1644786156304,0.001,2905.6,2905.3,0.01135831]
[1644786156602,0.5849,2905.5,2905.3,0.01135831]
[1644786157001,0.5849,2905.5,2904.7,0.96662865]
[1644786157202,0.713,2905.5,2905.1,0.8]
[1644786157402,0.713,2905.5,2905.3,0.01135831]
[1644786157651,0.413,2905.5,2905.3,0.01135831]
[1644786157851,0.713,2905.5,2905.3,0.01135831]
[1644786158052,0.713,2905.5,2904.5,0.1719]
[1644786158053,1.72253,2905.3,2904.5,0.1719]
[1644786158253,1.27427,2905.2,2904.5,0.1719]
[1644786158456,1.27427,2905.2,2905.0,0.5]
[1644786158457,1.44637,2905.2,2905.0,0.5]
[1644786158653,1.44637,2905.2,2904.5,0.1719]
[1644786158654,1.59281935,2905.1,2904.5,0.1719]
[1644786158856,3.16977,2905.0,2904.5,0.1719]
[1644786159151,3.16977,2905.0,2904.8,0.4248]
[1644786159152,0.3,2904.9,2904.8,0.4248]
[1644786159553,2.06863739,2905.4,2905.1,0.89999999]
[1644786159752,0.413,2905.6,2905.1,1.62479999]
[1644786159950,0.1719,2905.5,2905.1,1.62479999]
[1644786160151,0.413,2905.6,2905.1,1.62479999]
[1644786160152,0.413,2905.6,2905.1,2.6122106]
[1644786160351,0.413,2905.6,2905.1,5.03198064]
[1644786160552,0.1719,2905.5,2905.1,5.03198064]
[1644786160753,0.1719,2905.5,2905.1,5.12479999]
[1644786160953,0.1719,2905.5,2905.2,0.01135859]
[1644786161157,0.1719,2905.5,2905.3,3.40718065]
[1644786161415,0.001,2905.6,2905.4,4.53823265]
[1644786161613,0.1719,2905.9,2905.5,3.40718065]
[1644786161909,0.1719,2906.1,2905.4,1.46928747]
[1644786162309,0.86096,2906.0,2905.2,0.01135891]
[1644786162512,0.1719,2905.9,2905.2,0.01135891]
[1644786162909,1.59381935,2906.1,2905.1,4.82479999]
[1644786162910,0.413,2905.8,2905.1,4.82479999]
[1644786163110,0.5849,2905.8,2905.1,4.82479999]
[1644786163311,0.86115,2905.7,2905.2,0.01135902]
[1644786163510,0.5849,2905.6,2905.2,0.96452472]
[1644786163718,0.414,2905.6,2905.5,3.40718065]
[1644786164013,0.34542019,2906.2,2905.7,1.15051526]
[1644786164014,0.001,2906.1,2905.7,1.15051526]
[1644786164211,0.5849,2906.6,2905.7,1.15051526]
[1644786164412,0.86083,2906.5,2905.6,0.3]
[1644786164612,0.04542019,2906.2,2905.5,3.70718065]
[1644786164812,0.1719,2906.1,2905.5,0.3]
[1644786165015,0.1719,2906.1,2905.2,0.31135902]
[1644786165250,0.1719,2906.1,2905.5,3.40718065]
[1644786165449,0.1719,2906.3,2905.8,0.95150714]
[1644786165651,0.17985793,2906.5,2905.5,3.40718065]
[1644786165652,1.90487376,2906.4,2905.5,3.70718065]
[1644786165852,0.21595753,2906.2,2905.5,3.70718065]
[1644786166452,0.86093,2906.1,2905.5,3.70718065]
[1644786166652,1.16193,2906.1,2905.5,3.70718065]
[1644786166853,0.001,2906.0,2905.5,0.3]
[1644786167251,0.001,2906.0,2905.4,0.3]
[1644786167252,0.0030118,2905.6,2905.4,0.3]
[1644786167453,0.0030118,2905.6,2905.2,0.0110189]
[1644786167653,0.3040118,2905.6,2905.2,0.0110189]
[1644786167851,0.3040118,2905.6,2905.1,4.39999999]
[1644786168052,0.3040118,2905.6,2905.2,0.01101792]
[1644786168926,1.72208,2906.1,2905.2,0.01101792]
[1644786168927,0.02750609,2907.4,2905.6,4.7]
[1644786169115,0.02750609,2907.4,2907.0,0.01251356]
[1644786169313,0.17981967,2908.4,2907.3,0.01284974]
[1644786169512,2.42183142,2909.5,2907.3,0.01284974]
[1644786169513,2.42183142,2909.5,2907.3,20.39284974]
[1644786169711,2.42183142,2909.5,2907.4,3.913]
[1644786169912,1.12688009,2909.3,2907.8,1.15967792]
[1644786170214,3.913,2909.2,2907.8,1.1601]
[1644786170912,0.86018,2909.1,2907.5,0.4248]
[1644786171111,0.86013,2908.9,2907.5,0.4248]
[1644786171516,3.46887824,2908.8,2907.5,0.4248]
[1644786171712,1.27318,2909.1,2907.5,0.4248]
[1644786171910,1.27318,2909.1,2907.5,3.92540721]
[1644786172113,0.86019,2908.7,2907.5,4.22540721]
[1644786172855,0.86019,2908.7,2907.7,0.25]
[1644786173054,0.01131748,2908.2,2907.6,0.1719]
[1644786173254,0.01131748,2908.2,2907.6,3.59693233]
[1644786173453,0.01131748,2908.2,2907.6,0.1719]
[1644786173854,1.27324,2908.8,2907.6,0.1719]
[1644786174063,0.01131783,2908.0,2907.6,0.1719]
[1644786175060,1.72157,2908.5,2907.6,0.1719]
[1644786175257,0.01131801,2907.9,2907.5,4.15186317]
[1644786175556,0.01131801,2907.9,2907.5,3.73807521]
[1644786175759,0.01131801,2907.9,2907.6,0.1719]
[1644786176157,0.85999,2909.3,2907.6,0.1719]
[1644786176404,0.85999,2909.3,2907.9,1.72002]
[1644786176405,0.98229,2909.3,2907.9,1.72002]
[1644786176610,0.04277357,2908.3,2907.9,1.72002]
[1644786176805,0.04277357,2908.3,2908.0,0.3]
[1644786177004,0.04277357,2908.3,2908.2,3.40718065]
[1644786177205,0.04277357,2908.3,2907.4,1.77006302]
[1644786177206,0.7871,2908.1,2907.4,1.77006302]
[1644786177509,0.7871,2908.1,2907.1,3.72235479]
[1644786177704,1.08882525,2908.1,2907.1,3.55045479]
[1644786177905,0.001,2908.0,2907.1,3.55045479]
[1644786178202,0.001,2908.0,2907.1,0.14327414]
[1644786178406,0.001,2908.0,2907.6,3.40718065]
[1644786179006,0.01008123,2907.7,2907.6,3.40718065]
[1644786179808,0.001,2908.0,2907.6,3.40718065]
[1644786180169,0.01015951,2907.8,2907.5,0.8602]
[1644786180357,0.01015951,2907.8,2907.7,3.40718065]
[1644786180759,0.01015951,2907.8,2907.7,3.11198065]
[1644786181157,0.78882525,2908.1,2907.7,6.68264366]
[1644786181357,0.01015935,2907.9,2907.7,3.74256301]
[1644786181558,0.01015935,2907.9,2907.8,3.11198065]
[1644786181761,0.01015935,2907.9,2907.8,3.41198065]
[1644786181956,0.01015935,2907.9,2907.8,3.02738065]
[1644786182156,0.78882525,2908.1,2907.8,4.0062597]
[1644786182359,0.78882525,2908.1,2907.8,1.83900905]
[1644786182559,0.00171847,2907.9,2907.8,1.83900905]
[1644786182757,0.00171847,2907.9,2907.7,0.1719]
[1644786183156,0.00171847,2907.9,2907.8,6.52738065]
[1644786183356,0.00171847,2907.9,2907.8,3.5]
[1644786184203,0.12501847,2907.9,2907.8,3.5]
[1644786185002,0.12501847,2907.9,2907.3,0.5]
[1644786185003,4.7,2907.8,2907.3,0.5]
[1644786185203,4.7,2907.8,2906.8,1.7207]
[1644786185204,0.1233,2907.7,2906.4,2.47926083]
[1644786185402,0.5363,2907.7,2906.5,3.02738065]
[1644786185607,0.5353,2907.7,2906.5,3.02738065]
[1644786185903,0.5353,2907.7,2906.3,1.72091]
[1644786186105,0.5353,2907.7,2906.5,3.02738065]
[1644786186106,0.01017796,2907.2,2906.5,3.02738065]
[1644786186303,0.01017796,2907.2,2906.7,3.02738065]
[1644786186505,0.01017796,2907.2,2906.3,1.72091]
[1644786186703,0.01017796,2907.2,2907.1,3.02738065]
[1644786187104,0.12401847,2907.9,2907.1,3.02738065]
[1644786187305,0.01017834,2907.3,2907.1,3.02738065]
[1644786187503,0.01017834,2907.3,2907.1,3.32738065]
[1644786187955,0.01017834,2907.3,2907.1,0.3]
[1644786188452,0.001,2907.4,2906.7,3.19928065]
[1644786188654,0.01017826,2907.3,2906.7,3.49928065]
[1644786188852,0.87068826,2907.3,2906.7,3.49928065]
[1644786189054,0.82068826,2907.3,2906.7,3.49928065]
[1644786189253,0.301,2907.3,2906.7,0.4719]
[1644786189460,0.3,2907.3,2907.2,3.02738065]
[1644786189653,0.00271847,2907.9,2906.7,0.1719]
[1644786189854,0.00271847,2907.9,2906.7,3.49928065]
[1644786190052,1.72371847,2907.9,2906.7,3.49928065]
[1644786190253,2.5815,2907.6,2906.7,3.49928065]
[1644786190555,0.301,2907.5,2906.7,3.32738065]
[1644786190754,0.1223,2907.4,2906.7,3.32738065]
[1644786190953,0.001,2907.5,2907.0,0.00458467]
[1644786191601,0.001,2907.5,2907.2,3.02738065]
[1644786191801,0.001,2907.8,2907.2,3.02738065]
[1644786192003,0.001,2907.8,2907.2,3.32738065]
[1644786192202,0.001,2907.8,2907.2,0.3]
[1644786192401,0.001,2907.8,2907.1,0.00458458]
[1644786192606,0.8605,2907.7,2907.1,0.00458458]
[1644786192804,2.02098,2907.6,2907.1,0.00458458]
[1644786193001,0.001,2907.5,2907.0,3.32738065]
[1644786193202,0.001,2907.5,2907.0,0.3]
[1644786193407,0.13406554,2907.5,2907.1,0.01076735]
[1644786194002,0.86051,2907.4,2907.1,0.01076735]
[1644786194203,0.3,2907.4,2906.9,3.02738065]
[1644786194403,0.3,2907.6,2907.1,3.5]
[1644786194610,0.01095402,2907.4,2907.1,3.51095549]
[1644786194804,0.01095402,2907.4,2907.1,4.43857846]
[1644786195005,0.01095402,2907.4,2907.3,3.02738065]
[1644786195254,0.01095402,2907.4,2907.3,6.936336]
[1644786195453,0.2973,2908.0,2907.3,3.32738065]
[1644786195654,0.2973,2908.0,2907.4,3.41904017]
[1644786195655,0.001,2908.0,2907.4,3.41904017]
[1644786195853,0.001,2908.0,2907.3,0.3]
[1644786195854,0.01095394,2907.5,2907.3,0.3]
[1644786196055,0.01095394,2907.5,2907.4,4.05940065]
[1644786196254,0.01095394,2907.5,2907.4,4.18750065]
[1644786196452,0.01095394,2907.5,2907.4,4.35940065]
[1644786196854,0.7871,2908.1,2907.4,4.35940065]
[1644786197056,0.7871,2908.1,2908.0,3.02738065]
[1644786197260,0.7871,2908.1,2908.0,3.32738065]
[1644786197556,0.7871,2908.1,2908.0,0.3]
[1644786197557,0.7371,2908.1,2908.0,0.3]
[1644786197756,0.7371,2908.1,2907.3,4.74773065]
[1644786197956,0.7371,2908.1,2907.4,0.3]
[1644786198156,0.7371,2908.1,2907.5,0.86024]
[1644786198455,0.7371,2908.1,2907.6,0.3]
[1644786198655,1.0371,2908.1,2907.4,0.3]
[1644786198904,0.001,2908.0,2907.6,3.02738065]
[1644786199305,0.01072146,2907.9,2907.6,3.32738065]
[1644786199913,1.0371,2908.1,2907.4,0.3]
[1644786200107,0.99882146,2908.1,2907.4,0.3]
[1644786200307,0.99882146,2908.1,2907.3,1.34678439]
[1644786200706,1.99882146,2908.1,2907.3,1.04678439]
[1644786200906,0.99882146,2908.1,2907.3,1.04678439]
[1644786201108,0.86027,2908.0,2907.3,1.04678439]
[1644786201410,0.86027,2908.0,2906.7,1.2069]
[1644786201411,0.1223,2908.0,2907.2,3.02738065]
[1644786201607,0.1223,2908.0,2907.4,0.00457523]
[1644786202206,0.86032,2907.8,2907.4,0.00457523]
[1644786202670,0.86032,2907.8,2907.2,3.32738065]
[1644786202854,1.16032,2907.8,2907.2,3.32738065]
[1644786203053,0.3,2907.8,2907.4,0.01074355]
[1644786203254,2.14306,2907.9,2907.4,0.01074355]
[1644786203454,0.86032,2907.8,2907.4,0.01074355]
[1644786203855,0.86032,2907.8,2907.2,4.18772065]
[1644786204053,0.86032,2907.8,2907.4,0.01074355]
[1644786205155,0.86032,2907.8,2907.2,4.18772065]
[1644786205359,0.86132,2907.8,2907.4,0.0107407]
[1644786206256,0.86132,2907.8,2907.2,4.18773065]
[1644786206503,0.86132,2907.8,2907.4,2.5107407]
[1644786206702,0.86132,2907.8,2907.4,2.8107407]
[1644786207403,0.0017117,2907.7,2907.4,2.8107407]
[1644786207604,0.0017117,2907.7,2907.4,2.8]
[1644786207807,0.86037,2907.6,2907.4,2.8107407]
[1644786208009,0.413,2907.5,2907.4,2.8107407]